Cogmind - Beta 13 @@@ ROGUE MODE // 2024.04.20 @ 09:09:18 Player: sick0r Result: Destroyed by G-47 Trooper with Particle Gun Performance ------------- Evolutions (2) 1000 Regions Visited (5) 1000 Robots Destroyed (62) 310 Value Destroyed (1754) 1754 Prototype IDs (2) 40 Alien Tech Used (0) 0 Bonus (42) 42 TOTAL SCORE: 4146 Bonus ------- Follower Combat Kills 42 Cogmind --------- Core Integrity 0/550 Matter 220/300 Energy 100/100 System Corruption 0% Temperature Cool (18) Movement Core (1350) Ox26 Location -8/Materials Parts ------- > --- POWER (1) -------- (None) > --- PROPULSION (3) --- (None) > --- UTILITY (5) ------ Huge Storage Unit Launcher Guidance Computer Hacking Suite > --- WEAPON (2) ------- (None) > --- INVENTORY (25) --- Light Ion Engine Huge Storage Unit High-capacity Matter Pod (200) Makeshift System Restoration Module Heavy Assault Rifle Makeshift Axe Signal Generator Peak State ------------ > --- POWER ------------ Ion Engine > --- PROPULSION ------- Wheel Compact Wheel Compact Wheel > --- UTILITY ---------- Huge Storage Unit Makeshift Cloaking Device Light Armor Plating Hacking Suite Makeshift System Restoration Module > --- WEAPON ----------- Gauss Rifle Makeshift Axe > --- INVENTORY -------- Ion Engine Light Nuclear Core Makeshift Power Source Carbon-fiber Leg Carbon-fiber Leg Carbon-fiber Leg Makeshift Leg Compact Wheel Improved Heat Sink Huge Storage Unit High-capacity Matter Pod Targeting Computer Launcher Guidance Computer Light Armor Plating Light Armor Plating Particle Gun Gauss Rifle Grenade Launcher Mini Grenade Launcher Makeshift Sword Signal Generator [Rating: 31] Favorites ----------- Power Ion Engine Engine Ion Engine Power Core Light Nuclear Core Propulsion Compact Wheel Treads Light Treads Leg Carbon-fiber Leg Wheel Compact Wheel Utility Huge Storage Unit Device Makeshift System Restoration Module Storage Huge Storage Unit Processor Targeting Computer Hackware Hacking Suite Protection Light Armor Plating Weapon Assault Rifle Energy Gun Medium Laser Ballistic Gun Assault Rifle Launcher Mini Grenade Launcher Impact Weapon Hammer Slashing Weapon Makeshift Axe Build | -11 -10 -10 -10 -9 -8 ------- Run | Yrd Mat Min Exi Min Mat Slots Evolved 4 | . . . . . 4 Power . | . . . . . . Propulsion 1 | . . . . . 1 Utility 3 | . . . . . 3 Weapon . | . . . . . . Parts Attached 65 | 7 14 3 5 7 29 Power 11 | 2 3 1 . 1 4 Engine 10 | 2 3 1 . 1 3 Core 1 | . . . . . 1 Reactor . | . . . . . . Propulsion 22 | 2 4 1 1 5 9 Treads 4 | 2 2 . . . . Leg 6 | . . . . 1 5 Wheel 12 | . 2 1 1 4 4 Hover . | . . . . . . Flight . | . . . . . . Utility 14 | 1 3 1 1 . 8 Device 3 | . . . 1 . 2 Storage 2 | 1 1 . . . . Processor 5 | . 2 1 . . 2 Hackware 1 | . . . . . 1 Protection 3 | . . . . . 3 Artifact . | . . . . . . Weapon 18 | 2 4 . 3 1 8 Energy Gun 7 | 1 2 . 1 1 2 Energy Cannon . | . . . . . . Ballistic Gun 4 | 1 1 . 1 . 1 Ballistic Cannon . | . . . . . . Launcher 2 | . . . . . 2 Special Weapon . | . . . . . . Impact Weapon 1 | . 1 . . . . Slashing Weapon 4 | . . . 1 . 3 Piercing Weapon . | . . . . . . Special Melee Weapon . | . . . . . . Unidentified Prototypes . | . . . . . . Parts Lost 32 | . 3 2 . . 27 Power 7 | . 2 1 . . 4 Propulsion 12 | . . 1 . . 11 Utility 7 | . 1 . . . 6 Weapon 6 | . . . . . 6 Highest Loss Streak 16 | . 2 1 . . 16 To Critical Strikes . | . . . . . . Average Slot Usage (%) 94 | . 88 99 100 100 76 Engine 11 | . 9 13 14 14 5 Treads 4 | . 12 . . . . Wheel 22 | . 15 28 28 28 14 Device 3 | . . . 2 14 6 Storage 13 | . 14 14 14 14 9 Processor 7 | . 7 14 11 . 2 Energy Gun 11 | . 13 14 6 13 2 Ballistic Gun 13 | . 13 14 14 14 5 Slashing Weapon 2 | . . . 7 . 5 Naked Turns . | . . . . . . Heaviest Build 101 | 14 89 89 97 97 101 Greatest Support 50 | 40 40 32 32 32 50 Greatest Overweight (x) 26 | 4 4 2 3 3 26 Average Overweight (x) 2 | 2 1 2 2 3 2 Largest Inventory Capacity 25 | 8 25 25 25 25 25 Average Capacity 24 | 7 24 25 25 25 25 Most Carried 25 | 6 25 25 25 25 24 Average Carried 19 | 5 13 24 24 24 13 Final Capacity 25 | 8 25 25 25 25 25 Final Carried 25 | 4 25 24 24 25 7 Class Distribution -------------------- 78% | Mutant 21% | Scavenger-Mutant Dominant Class ---------------- Mutant | -10/Materials Mutant | -10/Mines Mutant | -10/Exiles Scavenger-Mutant | -9/Mines Scavenger-Mutant | -8/Materials Resources | -11 -10 -10 -10 -9 -8 ----------- Run | Yrd Mat Min Exi Min Mat Matter Collected 1431 | 183 580 159 96 156 257 Remotely . | . . . . . . Salvage Created 2321 | . 832 217 325 428 519 Parts 129 | . 43 12 15 25 34 Haulers Intercepted . | . . . . . . Recyclers Shooed 4 | . 3 . . 1 . Parts Field Recycled . | . . . . . . Retrieved Matter . | . . . . . . Parts Self-Destructed . | . . . . . . Prevented . | . . . . . . Kills | -11 -10 -10 -10 -9 -8 ------- Run | Yrd Mat Min Exi Min Mat Combat Hostiles Destroyed 43 | . 13 5 4 7 14 Melee 7 | . . . 4 . 3 Guns 29 | . 11 5 . 7 6 AOE 6 | . 1 . . . 5 Classes Destroyed 11 | . 7 . 1 1 2 Worker 2 | . 1 . . 1 . Builder 6 | . 1 . . . 5 Recycler 7 | . 4 . . 3 . Operator 2 | . 2 . . . . Watcher 3 | . 3 . . . . Swarmer 9 | . 3 . . 3 3 Grunt 29 | . 10 5 2 3 9 Sentry 1 | . . . . . 1 Hunter 2 | . . . 2 . . Heavy 1 | . . . . . 1 Assembled 1 | . . . . 1 . Best Kill Streak 7 | . 7 3 2 3 6 Combat Bots Only 6 | . 3 3 2 3 6 Max Kills in Single Turn 4 | . 4 2 1 2 3 Gunslinging 1 | . . 1 . 1 . Exploded 3 | . 1 . . . 3 Melee 1 | . . . 1 . 1 Uniques/NPCs Destroyed . | . . . . . . Combat | -11 -10 -10 -10 -9 -8 -------- Run | Yrd Mat Min Exi Min Mat Hostile Shots Fired 243 | . 57 22 . 18 146 Missed 77 | . 16 11 . 7 43 Damage Taken 3142 | . 512 178 . 177 2275 Core 709 | . 80 43 . 23 563 Absorbed by Shields . | . . . . . . Regen/Repaired (Parts) 102 | . 102 . . . . Core Remaining (%) 70 | 100 . . . 41 . Volleys Fired 131 | . 68 18 1 19 25 Largest 2 | . 2 2 1 2 2 Hottest 95 | . 70 70 28 93 95 Shots Fired 237 | . 118 36 2 38 43 Gun 230 | . 118 36 2 38 36 Cannon . | . . . . . . Launcher 7 | . . . . . 7 Special . | . . . . . . Kinetic 137 | . 69 19 2 19 28 Thermal 89 | . 45 17 . 19 8 Explosive 7 | . . . . . 7 Electromagnetic 4 | . 4 . . . . Robot Hit Streak 9 | . 7 5 . 5 9 Robot Miss Streak 4 | . 4 3 . 3 3 Penetration Max 1 | . . . . 1 1 Secondary Targets 5 | . 1 2 . 1 1 Max Gunslinging Chain 1 | . 1 1 . 1 1 Shots Hit Robots 173 | . 73 19 16 22 43 Core Hits 106 | . 40 11 9 13 33 Critical Kills . | . . . . . . Critical Parts Destroyed 1 | . 1 . . . . Critical Strikes 13 | . 5 3 . 1 4 Burn 9 | . 4 3 . 1 1 Destroy 1 | . 1 . . . . Sever 3 | . . . . . 3 Melee Attacks 53 | . . . 25 . 28 Impact . | . . . . . . Slashing 53 | . . . 25 . 28 Piercing . | . . . . . . Sneak Attacks 12 | . . . 9 . 3 Combat Hostiles 9 | . . . 9 . . Follow-up Attacks 3 | . . . . . 3 Damage Inflicted 5212 | . 1490 252 1236 441 1793 Guns 2134 | . 920 239 . 441 534 Cannons . | . . . . . . Explosions 1244 | . 570 . . . 674 Melee 1821 | . . . 1236 . 585 Ramming 13 | . . 13 . . . Kinetic 1398 | . 527 100 . 301 470 Thermal 1210 | . 867 139 . 140 64 Explosive 674 | . . . . . 674 Electromagnetic 96 | . 96 . . . . Impact . | . . . . . . Slashing 1821 | . . . 1236 . 585 Piercing . | . . . . . . Highest Corruption 4 | . 3 4 4 . . Average Corruption 3 | . 2 3 3 . . Corruption Purged 4 | . . . 4 . . Corruption Blocked . | . . . . . . Effects 75 | . 26 24 25 . . Message Errors 20 | . 4 9 7 . . Matter Fused 18 | . 6 5 7 . . Heat Flow Errors 7 | . 3 2 2 . . Energy Discharges 11 | . 7 2 2 . . Data Loss (minor) 11 | . 3 4 4 . . Data Loss (major) 1 | . 1 . . . . Misfires 3 | . 1 1 1 . . Alerts 3 | . 1 . 2 . . Weapon Failures 1 | . . 1 . . . Overload Shots . | . . . . . . Overflow Damage 209 | . 38 . 115 . 56 Projectiles . | . . . . . . Explosions 38 | . 38 . . . . Melee 171 | . . . 115 . 56 Knockbacks . | . . . . . . Impact . | . . . . . . Kinetic . | . . . . . . Secondary . | . . . . . . Self-Inflicted Damage 62 | . 56 6 . . . Shots 2 | . 2 . . . . Rammed 1 | . . 1 . . . Targets Rammed 1 | . . 1 . . . Kicked . | . . . . . . Crushed . | . . . . . . Highest Temperature 254 | . 224 229 254 165 42 Average Temperature 50 | . 46 62 110 47 13 Received Heat Transfer 840 | . 222 99 . 60 459 Siege Activations . | . . . . . . Robots Corrupted . | . . . . . . Combat Hostiles . | . . . . . . Parts Fried . | . . . . . . Impact Corruptions . | . . . . . . Robots Melted 1 | . 1 . . . . Combat Hostiles 1 | . 1 . . . . Parts Melted 3 | . 2 . . . 1 Heat Transferred 2940 | . 1682 629 . 407 222 Parts Sabotaged . | . . . . . . Parts Stolen . | . . . . . . Parts Stripped . | . . . . . . Power Chain Reactions . | . . . . . . Alert | -11 -10 -10 -10 -9 -8 ------- Run | Yrd Mat Min Exi Min Mat Peak Influence 266 | . 266 110 . 185 234 Initial 27 | . . 2 . . 27 Average 65 | . 101 12 . 26 122 Maximum Alert Level 1 | . 1 . . . 1 Low Security (%) 93 | 100 89 100 . 100 78 Level 1 6 | . 10 . . . 21 Level 2 . | . . . . . . Level 3 . | . . . . . . Level 4 . | . . . . . . Level 5 . | . . . . . . High Security . | . . . . . . Max Security . | . . . . . . Squads Dispatched 6 | . 4 . . . 2 Investigation 2 | . 2 . . . . Extermination . | . . . . . . Reinforcement 4 | . 2 . . . 2 Assault . | . . . . . . Garrison . | . . . . . . Intercept . | . . . . . . Searches Triggered . | . . . . . . Construction Impeded 1 | . . . . . 1 Haulers Reinforced . | . . . . . . Active Scanning Responses . | . . . . . . Cargo Convoy Interrupts . | . . . . . . Stealth | -11 -10 -10 -10 -9 -8 --------- Run | Yrd Mat Min Exi Min Mat Distress Signals 1 | . . . . . 1 Communications Jammed . | . . . . . . Distress Signals . | . . . . . . Times Spotted 93 | . 34 6 . 31 22 Peak Tracking Total 20 | . 3 2 . 20 9 Tactical Retreats 8 | . 3 . . 3 2 Traps | -11 -10 -10 -10 -9 -8 ------- Run | Yrd Mat Min Exi Min Mat Traps Triggered 4 | . 4 . . . . Indirectly . | . . . . . . Trap Hack Attempts . | . . . . . . Triggered . | . . . . . . Disarmed . | . . . . . . Reprogrammed . | . . . . . . Reused . | . . . . . . Traps Extracted . | . . . . . . Installed . | . . . . . . Triggered . | . . . . . . Machines | -11 -10 -10 -10 -9 -8 ---------- Run | Yrd Mat Min Exi Min Mat Machines Disabled 12 | . 10 . . 2 . Max in Single Turn 7 | . 7 . . 1 . Machines Repaired . | . . . . . . Machines Dismantled . | . . . . . . Machines Sabotaged . | . . . . . . Overloaded Fab Kills . | . . . . . . Hacking | -11 -10 -10 -10 -9 -8 --------- Run | Yrd Mat Min Exi Min Mat Machines Accessed 10 | . 5 1 4 . . Terminals 5 | . 4 1 . . . Fabricators . | . . . . . . Repair Stations 1 | . 1 . . . . Recycling Units . | . . . . . . Scanalyzers . | . . . . . . Garrison Access . | . . . . . . Total Hacks 65 | . 14 2 49 . . Successful 58 | . 9 . 49 . . Failed 7 | . 5 2 . . . Catastrophic 2 | . . 2 . . . Database Lockouts . | . . . . . . Manual 1 | . . . 1 . . Terminals 11 | . 9 2 . . . Fabricators . | . . . . . . Repair Stations 5 | . 5 . . . . Recycling Units . | . . . . . . Scanalyzers . | . . . . . . Garrison Access . | . . . . . . Terminal Hacks 54 | . 5 . 49 . . Record 49 | . . . 49 . . Prototype ID Bank 1 | . 1 . . . . Branch Access Points 1 | . 1 . . . . Unreport Threat 1 | . 1 . . . . Locate Traps 1 | . 1 . . . . Registered Components 1 | . 1 . . . . Fabricator Hacks . | . . . . . . Repair Station Hacks 4 | . 4 . . . . Scan Component 2 | . 2 . . . . Repair 2 | . 2 . . . . Recycling Unit Hacks . | . . . . . . Scanalyzer . | . . . . . . Garrison Access Hacks . | . . . . . . Unauthorized Hacks . | . . . . . . Terminals . | . . . . . . Fabricators . | . . . . . . Repair Stations . | . . . . . . Recycling Units . | . . . . . . Scanalyzers . | . . . . . . Garrison Access . | . . . . . . Data Cores Recovered . | . . . . . . Used . | . . . . . . Hacking Detections 4 | . 3 1 . . . Full Trace Events 2 | . 1 1 . . . Feedback Events 1 | . . 1 . . . Corruption 1 | . . 1 . . . Feedback Blocked . | . . . . . . Robot Schematics Acquired . | . . . . . . Robots Built . | . . . . . . Authchips . | . . . . . . Time . | . . . . . . Total Robot Build Rating . | . . . . . . Part Schematics Acquired . | . . . . . . Parts Built . | . . . . . . Authchips . | . . . . . . Time . | . . . . . . Total Part Build Rating . | . . . . . . Parts Repaired 2 | . 2 . . . . Time 52 | . 52 . . . . Parts Recycled . | . . . . . . Recycled Matter . | . . . . . . Retrieved Matter . | . . . . . . Retrieved Components . | . . . . . . Parts Scanalyzed . | . . . . . . Part Schematics Acquired . | . . . . . . Parts Damaged . | . . . . . . Bothacking | -11 -10 -10 -10 -9 -8 ------------ Run | Yrd Mat Min Exi Min Mat Used RIF Installer . | . . . . . . Robots Hacked . | . . . . . . Non-combat . | . . . . . . Combat . | . . . . . . Robot Hacks Applied . | . . . . . . Relay Couplers Released . | . . . . . . Fabnet Peak Effective % . | . . . . . . Robots Rewired . | . . . . . . Allies Hacked . | . . . . . . Hacks Repelled . | . . . . . . Allies | -11 -10 -10 -10 -9 -8 -------- Run | Yrd Mat Min Exi Min Mat Total Allies 2 | . . . . 2 . Largest Group 2 | . . . . 2 1 Highest-Rated Group 39 | . . . . 39 31 Highest-Rated Ally 31 | . . . . 31 31 Total Orders . | . . . . . . Ally Attacks 21 | . . . . 14 7 Total Damage 296 | . . . . 168 128 Kills 3 | . . . . 2 1 Allies Corrupted . | . . . . . . Allies Melted . | . . . . . . Intel | -11 -10 -10 -10 -9 -8 ------- Run | Yrd Mat Min Exi Min Mat Robot Analysis Total . | . . . . . . Derelict Logs Recovered 3 | . . 2 . 1 . Drone Launches . | . . . . . . Drone Recoveries . | . . . . . . Exploration | -11 -10 -10 -10 -9 -8 ------------- Run | Yrd Mat Min Exi Min Mat Turns Passed 6403 | 75 2358 977 1362 1275 356 Spaces Moved 3621 | 36 1131 651 866 840 97 Core 32 | 30 . . . . 2 Treads 317 | 6 311 . . . . Legs 18 | . . . . . 18 Wheels 3254 | . 820 651 866 840 77 Hover . | . . . . . . Flight . | . . . . . . Fastest Speed 50 | 50 130 130 130 135 123 Average Speed 147 | 168 176 130 130 136 184 Slowest Speed 1350 | 250 480 130 145 145 1350 Overloaded Moves . | . . . . . . Propulsion Burnouts . | . . . . . . Robots Hopped . | . . . . . . Cave-ins Triggered . | . . . . . . Exploration Rate (%) 64 | 3 99 88 94 100 5 Regions Visited 5 Branch Regions 3 Pre-discovered Areas 3 | . . 2 1 . . Known Exits Taken 3 | . 1 1 1 . . Unknown Exits Taken 2 | 1 . . . 1 . Scrap Searched 2 | . . 1 . 1 . Spaces Dug 9 | . . . 3 . 6 Terrain Destroyed 113 | . 31 . 3 . 79 Melee 9 | . . . 3 . 6 Projectile . | . . . . . . AOE 104 | . 31 . . . 73 Terrain Rammed . | . . . . . . Walls Destroyed . | . . . . . . Machines Disabled . | . . . . . . Actions | -11 -10 -10 -10 -9 -8 --------- Run | Yrd Mat Min Exi Min Mat Total 4385 | 48 1377 746 1074 936 204 Wait 426 | . 124 68 156 55 23 Move 3616 | 35 1130 650 865 839 97 Hop . | . . . . . . Pick Up 68 | 6 35 4 11 7 5 Fast Attach 4 | 4 . . . . . Attach 38 | 2 10 2 . 1 23 Detach . | . . . . . . Swap 23 | 1 4 1 5 6 6 Drop 28 | . 6 2 11 9 . Fire 131 | . 68 18 1 19 25 Melee 50 | . . . 25 . 25 Ram 1 | . . 1 . . . Kick . | . . . . . . Crush . | . . . . . . Escape Stasis . | . . . . . . Rewire . | . . . . . . Trap . | . . . . . . Miscellaneous . | . . . . . . Route ------- -11/Scrapyard -10/Materials (discovered 4 exits: [*Mat x3] / *Min) -10/Mines (discovered 4 exits: [*Mat x2] / *Exi / *Sub) -10/Exiles (discovered 2 exits: *Min x2) -9/Mines (discovered 2 exits: *Mat x2) -8/Materials History --------- Turn | Location | Event 9 | -11/Scrapyard | Discovered new exit (range 15) 76 | -11/Scrapyard | Entered Materials 216 | -10/Materials | Discovered new exit (range 7) 328 | -10/Materials | Build established: Mutant 355 | -10/Materials | Discovered new exit (range 15) 928 | -10/Materials | Discovered new exit (range 14) 1645 | -10/Materials | Discovered new exit (range 16) 1840 | -10/Materials | Repaired Assault Rifle 1867 | -10/Materials | Repaired Med. Laser 2343 | -10/Materials | Identified exit to Mines 2434 | -10/Materials | Entered Mines 2501 | -10/Mines | Discovered new exit (range 7) 2595 | -10/Mines | Discovered new exit (range 4) 2657 | -10/Mines | Deemed a non-threat by the Exiles lab entrance 2658 | -10/Mines | Discovered new exit (range 5) 2695 | -10/Mines | Met a Derelict testing a Signal Generator 2700 | -10/Mines | Found Signal Generator 2710 | -10/Mines | Learned location of Mines (-9) 3258 | -10/Mines | Discovered new exit (range 4) 3285 | -10/Mines | Identified exit to Subcaves 3410 | -10/Mines | Identified exit to Exiles 3411 | -10/Mines | Entered Exiles 3411 | -10/Exiles | Found Exiles lab destroyed 3435 | -10/Exiles | Discovered new exit (range 15) 3450 | -10/Exiles | Identified exit to Mines 3756 | -10/Exiles | Learned location of Zion (-6) 3834 | -10/Exiles | Discovered exit to Mines (range 14) 4773 | -10/Exiles | Entered Mines 4773 | -9/Mines | Discovered new exit (range 12) 4866 | -9/Mines | Assembled infested the area 4882 | -9/Mines | Core integrity fell below 50% 4944 | -9/Mines | Discovered new exit (range 9) 5090 | -9/Mines | Found a hidden stash of uninstalled traps 5253 | -9/Mines | Build established: Scavenger-Mutant 6048 | -9/Mines | Entered Materials 6048 | -8/Materials | Accompanied by 1 ally 6048 | -8/Materials | Evolved 4 slots: Propulsion x1, Utility x3 6053 | -8/Materials | Led the pair of lost Derelicts to an unsafe place 6267 | -8/Materials | Lost 16 parts (3p4n6u3w) 6324 | -8/Materials | Core integrity fell below 50% 6364 | -8/Materials | Core integrity fell below 20% 6404 | -8/Materials | Destroyed by G-47 Trooper with Particle Gun Last Messages --------------- Wheel destroyed. Knocked back. U-05 Engineer lays Concrete. Knocked back. U-05 Engineer builds a Wall. U-05 Engineer destroyed. H-61 Shepherd destroyed. The unstable cave ceiling collapses. K-01 Serf collects debris. Particle Gun destroyed. K-01 Serf collects debris. Acquired Hvy. Assault Rifle. Aluminum Leg destroyed. K-01 Serf collects debris. Mni. Grenade Launcher destroyed. K-01 Serf collects debris. The unstable cave ceiling collapses. Acquired Lgt. Ion Engine. The unstable cave ceiling collapses. G-47 Trooper suffers critical hit (Burn). Map ----- +----------------------------------------------------+ | ?????????????????????????????????????????????? | | ?????????????????????????????????????????????? | | ?????????????????????????????????????????????? | | ?????????????????????????????????????????????? | | ?????????????????????????????????????????????? | | ?????????????????????????????????????????????? | | ?????????????????????????????????????????????? | | ?????????????????????????????????????????????? | | ?????????????????????????????????????????????? | | ?????????????????????????????????????????????? | | ?????????????????????????????????????????????? | | ?????????????????????????????????????????????? | | ?????????????????????????????????????????????? | | ?????????????????????????????????????????????? | | ?????????????????????????????????????????????? | | ?????????????????????????????????????????????? | | ?????????????????????????????????????????????? | | ?????????????????????????????????????????????? | | ?????????????????????????????????????????????? | | ?????????????#T????????????????????????????? | | ##?????????## ??##?###???###?????????????? | | ?####### # #########?????????????? | | * * ####!= ###%%% #?????????????? | | != * %%%%% g! ##????????????? | | =%==% =%!%[* * =% g ##????????????? | | * %== [%=* # # ##@#######????????????? | | %!!%# % ??# g "T" #??????????????? | | !%* ""####"#???? #??????????????? | | #######????###?? # #??????????????? | | ???????????????# ?# ! #??????????????? | | ?????????????????#???# #??????????????? | | ?????????????????????# """ #??????????????? | | ?????????????????????# """ #??????????????? | | ????????????????????## """ ##?????????????? | | ????????????????????## ##?????????????? | | ????????????????????############?????????????? | | ?????????????????????###?????????????????????? | | ?????????????????????????????????????????????? | | ?????????????????????????????????????????????? | | | | | | | | | | | | | | | | | | | | | | | +----------------------------------------------------+ Best States ------------- Heat Dissipation 31 Energy Generation 15 Energy Capacity 250 Matter Stores 300 Matter Capacity 300 Sight Range 16 Terrain Scan Density 10 Cloak Strength 3 Armor Coverage 300 Evasion (%) 50 Targeting Accuracy 5 Launcher Accuracy 20 Recoil Reduction 2 Offensive Hacking 10 Item Schematics ----------------- None Robot Schematics ------------------ None Fabricated ------------ Nothing Alien Tech Used ----------------- None Achievements -------------- None Challenges ------------ None Game ------ Seed HackingThrusterAutobeam Manual? 0 Play Time 00:50:04 Cumulative 27.5 hours Start 2024.04.20 @ 08:18:23 End 2024.04.20 @ 09:09:18 Sessions 1 Manual Loads 0 Difficulty Rogue Special Mode None Game No. 29 Rogue 29 Adventurer 0 Explorer 0 Win Type - Total 0 Types 0/0/0/0/0/0/0/0/0 Lore% 15 Gallery% 23 Achievement% 100 Wizard Run 0 Options --------- Layout 1 ASCII 0 Keyboard 0 Movement Mouse Keybinds 0 Fullscreen 1 Font 24/Smallcaps Map View 50x35 Zoom Use 0% Tactical HUD 0 Map Filters NONE Filters NONE Steam 1 RUN: 367c6837-0ed0-4c0a-a59a-cbb76722b686